[Event "Int SVK-ch Open 2020"]
[Site "Drienica"]
[Date "2020.08.09"]
[Round "3.6"]
[White "Priechodsky, Radovan"]
[Black "Bochnicka, Vladimir"]
[Result "1/2-1/2"]
[ECO "D02"]
[WhiteElo "1975"]
[BlackElo "2123"]
[Annotator "RC"]
[PlyCount "65"]
[EventDate "2020.08.07"]
[EventType "swiss"]
[EventCountry "SVK"]
[SourceTitle "playchess.com"]
[Source "ChessBase"]
[SourceQuality "1"]
[TimeControl "40/5400+30:1800+30"]

1. d4 {[%emt 0:00:00]} Nf6 {[%emt 0:00:00]} 2. Nf3 {[%emt 0:00:00]} d5 {[%emt 0:00:00]} 3. Bf4 {[%emt 0:00:00]} c5 {[%emt 0:00:00]} 4. c3 {[%emt 0:00:41]} Nc6 {[%emt 0:00:00]} 5. e3 {[%emt 0:00:08]} Qb6 {[%emt 0:00:11]} 6. Qb3 {[%emt 0:00:06]} c4 {[%emt 0:00:12]} 7. Qc2 {[%emt 0:00:57]} Bf5 {[%emt 0:00:14]} 8. Qc1 {[%emt 0:00:05]} h6 {[%emt 0:00:30]} 9. h3 {[%emt 0:02:04]} e6 {[%emt 0:00:37]} 10. Nbd2 {[%emt 0:01:06]} Qd8 {[%emt 0:01:11]} 11. b3 {[%emt 0:08:21]} b5 {[%emt 0:01:56]} 12. Be2 {[%emt 0:08:52]} Be7 {[%emt 0:01:35]} 13. Ne5 {[%emt 0:15:49]} Nxe5 {[%emt 0:02:05]} 14. Bxe5 {[%emt 0:03:58]} O-O {[%emt 0:01:20]} 15. O-O {[%emt 0:02:45]} Bd6 {[%emt 0:13:17]} 16. Bxd6 {[%emt 0:17:56]} Qxd6 {[%emt 0:00:07]} 17. a4 {[%emt 0:03:00]} a6 {[%emt 0:01:12]} 18. axb5 {[%emt 0:00:48]} axb5 {[%emt 0:00:31]} 19. Qb2 {[%emt 0:06:17]} Qc6 {[%emt 0:03:05]} 20. b4 {[%emt 0:02:34]} Nd7 {[%emt 0:01:53]} 21. Rxa8 {[%emt 0:09:15]} Rxa8 {[%emt 0:00:08]} 22. Ra1 {[%emt 0:00:28]} Ra6 {[%emt 0:00:57]} 23. Ra5 {[%emt 0:03:07]} Rxa5 {[%emt 0:13:31]} 24. bxa5 {[%emt 0:00:09]} Nb8 {[%emt 0:00:19]} 25. Nb1 {[%emt 0:11:29]} Bxb1 {[%emt 0:30:24]} 26. Qxb1 {[%emt 0:00:08]} Qb7 {[%emt 0:01:25]} 27. Qb4 {[%emt 0:02:53]} Nc6 {[%emt 0:00:15]} 28. Qd6 {[%emt 0:00:17]} g6 {[%emt 0:02:32]} 29. Bd1 {[%emt 0:00:44]} Kg7 {[%emt 0:00:41]} 30. h4 {[%emt 0:00:23]} Nxa5 {[%emt 0:10:25]} 31. h5 {[%emt 0:00:13]} gxh5 {[%emt 0:10:17]} 32. Qe5+ {[%emt 0:00:52]} Kf8 {[%emt 0:00:12]} 33. Qd6+ {[%emt 0:00:19]} 1/2-1/2

[Event "Int SVK-ch Open 2020"]
[Site "Drienica"]
[Date "2020.08.09"]
[Round "3.6"]
[White "Paluska, Karol"]
[Black "Hlavac, Peter"]
[Result "1/2-1/2"]
[ECO "A43"]
[WhiteElo "1873"]
[BlackElo "1952"]
[Annotator "ChessBase"]
[PlyCount "137"]
[EventDate "2020.08.07"]
[EventType "swiss"]
[EventCountry "SVK"]
[SourceTitle "playchess.com"]
[Source "ChessBase"]
[SourceQuality "1"]
[TimeControl "40/5400+30:1800+30"]

1. d4 {[%emt 0:00:00]} Nf6 {[%emt 0:00:00]} 2. Nf3 {[%emt 0:00:00]} c5 {[%emt 0:00:22]} 3. d5 {[%emt 0:00:20]} b5 {[%emt 0:00:30]} 4. c4 {[%emt 0:00:30]} b4 {[%emt 0:00:30]} 5. Nbd2 {[%emt 0:00:30]} d6 {[%emt 0:00:30]} 6. e4 {[%emt 0:00:30]} e5 {[%emt 0:08:43]} 7. Bd3 {[%emt 0:03:52]} Be7 {[%emt 0:04:36]} 8. O-O {[%emt 0:01:10]} O-O {[%emt 0:00:06]} 9. Re1 {[%emt 0:03:26]} Nbd7 {[%emt 0:04:23]} 10. Nf1 {[%emt 0:00:30]} a5 {[%emt 0:00:58]} 11. Ne3 {[%emt 0:00:54]} g6 {[%emt 0:00:47]} 12. Nf1 {[%emt 0:01:17]} Ba6 {[%emt 0:04:14]} 13. Bh6 {[%emt 0:01:51]} Re8 {[%emt 0:00:07]} 14. Ng3 {[%emt 0:09:30]} Ng4 {[%emt 0:03:56]} 15. Bd2 {[%emt 0:06:09]} h5 {[%emt 0:04:42]} 16. h3 {[%emt 0:02:06]} Ngf6 {[%emt 0:00:06]} 17. Bg5 {[%emt 0:03:02]} Nxd5 {[%emt 0:04:36]} 18. cxd5 {[%emt 0:05:58]} Bxg5 {[%emt 0:00:12]} 19. Bxa6 {[%emt 0:04:22]} Rxa6 {[%emt 0:00:11]} 20. Qa4 {[%emt 0:03:04]} Bh6 {[%emt 0:03:34]} 21. Nf1 {[%emt 0:00:44]} Nf6 {[%emt 0:02:42]} 22. Qb5 {[%emt 0:00:53]} Qb6 {[%emt 0:00:22]} 23. Qd3 {[%emt 0:00:22]} Rb8 {[%emt 0:03:05]} 24. N3d2 {[%emt 0:01:56]} Qb5 {[%emt 0:00:32]} 25. Nc4 {[%emt 0:01:44]} Ne8 {[%emt 0:03:43]} 26. g4 {[%emt 0:08:08]} hxg4 {[%emt 0:00:57]} 27. hxg4 {[%emt 0:00:16]} Ra7 {[%emt 0:03:58]} 28. b3 {[%emt 0:04:29]} Qd7 {[%emt 0:01:13]} 29. Qh3 {[%emt 0:05:45]} Bg5 {[%emt 0:01:50]} 30. Nfe3 {[%emt 0:03:21]} Nf6 {[%emt 0:04:59]} 31. Kg2 {[%emt 0:01:00]} Raa8 {[%emt 0:06:31]} 32. Rh1 {[%emt 0:00:37]} Kg7 {[%emt 0:00:23]} 33. f3 {[%emt 0:05:10]} Rh8 {[%emt 0:00:40]} 34. Qg3 {[%emt 0:00:39]} Bf4 {[%emt 0:00:54]} 35. Qf2 Qc7 {[%emt 0:02:50]} 36. Rag1 {[%emt 0:02:48]} Rxh1 {[%emt 0:00:47]} 37. Rxh1 a4 {[%emt 0:03:57]} 38. Qh4 {[%emt 0:06:04]} axb3 {[%emt 0:00:16]} 39. a4 {[%emt 0:01:33]} bxa3 {[%emt 0:03:35]} 40. Nf5+ {[%emt 0:01:33]} gxf5 {[%emt 0:01:01]} 41. g5 {[%emt 0:30:10]} Ng8 {[%emt 0:39:02]} 42. Qh8+ {[%emt 0:10:05]} Kf8 {[%emt 0:01:08]} 43. Rh7 {[%emt 0:00:28]} Ke7 {[%emt 0:09:38]} 44. Rxf7+ {[%emt 0:00:40]} Kxf7 {[%emt 0:01:00]} 45. Qh7+ {[%emt 0:00:09]} Kf8 {[%emt 0:00:50]} 46. Qxc7 {[%emt 0:00:05]} Bxg5 {[%emt 0:01:16]} 47. Qb7 {[%emt 0:02:11]} Ra4 {[%emt 0:02:15]} 48. Qxb3 {[%emt 0:01:18]} Rb4 {[%emt 0:00:14]} 49. Qxa3 {[%emt 0:00:00]} Rxc4 {[%emt 0:00:00]} 50. Qa8+ {[%emt 0:00:00]} Kf7 {[%emt 0:00:00]} 51. exf5 {[%emt 0:00:00]} Be7 {[%emt 0:00:00]} 52. Qc8 {[%emt 0:00:00]} Nf6 {[%emt 0:00:00]} 53. Qe6+ {[%emt 0:00:00]} Kf8 {[%emt 0:00:00]} 54. Qc8+ {[%emt 0:00:00]} Ne8 {[%emt 0:00:00]} 55. Qe6 {[%emt 0:00:00]} Rf4 {[%emt 0:00:00]} 56. Qh6+ {[%emt 0:00:00]} Ng7 57. Kf2 {[%emt 0:00:00]} Rxf5 {[%emt 0:00:00]} 58. Qh8+ {[%emt 0:00:00]} Kf7 {[%emt 0:00:00]} 59. Ke2 {[%emt 0:00:00]} Bf8 {[%emt 0:00:00]} 60. Qh3 {[%emt 0:00:00]} Be7 {[%emt 0:00:00]} 61. Qh8 {[%emt 0:00:00]} Rf4 {[%emt 0:00:00]} 62. Qc8 {[%emt 0:00:00]} Rd4 {[%emt 0:00:00]} 63. Qb7 {[%emt 0:00:00]} Nf5 {[%emt 0:00:00]} 64. Qd7 {[%emt 0:00:00]} Kf6 {[%emt 0:00:00]} 65. Qe6+ {[%emt 0:00:00]} Kg5 {[%emt 0:00:00]} 66. Qg8+ {[%emt 0:00:00]} Kf6 {[%emt 0:00:00]} 67. Qe6+ {[%emt 0:00:00]} Kg5 {[%emt 0:00:00]} 68. Qg8+ {[%emt 0:00:00]} Kh6 {[%emt 0:00:00]} 69. Qe6+ {[%emt 0:00:00]} 1/2-1/2

[Event "Int SVK-ch Open 2020"]
[Site "Drienica"]
[Date "2020.08.09"]
[Round "3.7"]
[White "Majek, Kacper"]
[Black "Macko, Michal"]
[Result "1/2-1/2"]
[ECO "D27"]
[WhiteElo "1970"]
[BlackElo "2148"]
[Annotator "ChessBase"]
[PlyCount "92"]
[EventDate "2020.08.07"]
[EventType "swiss"]
[EventCountry "SVK"]
[SourceTitle "playchess.com"]
[Source "ChessBase"]
[SourceQuality "1"]
[TimeControl "40/5400+30:1800+30"]

1. d4 {[%emt 0:00:00]} Nf6 {[%emt 0:00:43]} 2. c4 {[%emt 0:00:00]} e6 {[%emt 0:00:05]} 3. Nc3 {[%emt 0:00:00]} d5 {[%emt 0:00:16]} 4. Nf3 {[%emt 0:00:00]} c5 {[%emt 0:00:08]} 5. e3 {[%emt 0:00:20]} a6 {[%emt 0:00:05]} 6. a3 {[%emt 0:06:21]} dxc4 {[%emt 0:00:15]} 7. Bxc4 {[%emt 0:00:02]} b5 {[%emt 0:00:13]} 8. Be2 {[%emt 0:00:22]} Bb7 {[%emt 0:00:05]} 9. O-O {[%emt 0:00:12]} Nbd7 {[%emt 0:00:04]} 10. dxc5 {[%emt 0:09:43]} Bxc5 {[%emt 0:00:06]} 11. b4 {[%emt 0:00:26]} Be7 {[%emt 0:00:22]} 12. Bb2 {[%emt 0:01:20]} O-O {[%emt 0:00:12]} 13. Qb3 {[%emt 0:02:29]} Qb6 {[%emt 0:01:50]} 14. Rfd1 {[%emt 0:05:45]} Rac8 {[%emt 0:03:56]} 15. Rab1 {[%emt 0:08:56]} Qa7 {[%emt 0:02:22]} 16. a4 {[%emt 0:15:26]} bxa4 {[%emt 0:00:20]} 17. Qxa4 {[%emt 0:00:10]} Nb6 {[%emt 0:03:10]} 18. Qa1 {[%emt 0:00:23]} Nc4 {[%emt 0:00:35]} 19. b5 {[%emt 0:07:30]} Nxb2 {[%emt 0:00:49]} 20. Qxb2 {[%emt 0:00:08]} a5 {[%emt 0:00:21]} 21. b6 {[%emt 0:01:22]} Qb8 {[%emt 0:00:12]} 22. Nb5 {[%emt 0:00:44]} Bb4 {[%emt 0:01:18]} 23. Ne5 {[%emt 0:13:46]} Be4 {[%emt 0:01:00]} 24. Rbc1 {[%emt 0:04:09]} Rxc1 {[%emt 0:00:12]} 25. Rxc1 {[%emt 0:01:05]} Qxb6 {[%emt 0:00:09]} 26. Nd4 {[%emt 0:02:16]} Qb7 {[%emt 0:07:07]} 27. f3 {[%emt 0:01:25]} Bd5 {[%emt 0:05:28]} 28. e4 {[%emt 0:02:37]} Qb8 {[%emt 0:00:06]} 29. Nd3 {[%emt 0:02:01]} Ba8 {[%emt 0:03:57]} 30. Nxb4 {[%emt 0:01:00]} axb4 {[%emt 0:00:07]} 31. Rb1 {[%emt 0:04:25]} Qa7 {[%emt 0:00:20]} 32. Kf1 {[%emt 0:00:13]} Rb8 {[%emt 0:01:31]} 33. Nb5 {[%emt 0:01:07]} Qe3 {[%emt 0:02:02]} 34. Qb3 {[%emt 0:00:24]} Qf4 {[%emt 0:01:27]} 35. g3 {[%emt 0:04:03]} Qe5 {[%emt 0:01:06]} 36. Qxb4 {[%emt 0:01:22]} Bc6 {[%emt 0:00:23]} 37. Rc1 {[%emt 0:03:55]} Bxb5 {[%emt 0:01:13]} 38. Qxb5 {[%emt 0:00:34]} Qxb5 {[%emt 0:00:19]} 39. Bxb5 {[%emt 0:00:06]} g5 {[%emt 0:00:03]} 40. Rc5 {[%emt 0:01:18]} g4 {[%emt 0:00:08]} 41. Kf2 {[%emt 0:31:05]} h5 {[%emt 0:31:45]} 42. Ke3 {[%emt 0:01:32]} Ra8 {[%emt 0:00:25]} 43. fxg4 {[%emt 0:00:00]} hxg4 {[%emt 0:00:00]} 44. Be2 {[%emt 0:00:00]} Ra2 {[%emt 0:00:00]} 45. Rg5+ {[%emt 0:00:00]} Kf8 {[%emt 0:00:00]} 46. Bxg4 {[%emt 0:00:00]} Rxh2 {[%emt 0:00:00]} 1/2-1/2

[Event "Int SVK-ch Open 2020"]
[Site "Drienica"]
[Date "2020.08.09"]
[Round "3.7"]
[White "Antal, Jakub"]
[Black "Sedlak, Mikulas"]
[Result "1-0"]
[ECO "A21"]
[WhiteElo "1939"]
[BlackElo "1573"]
[Annotator "ChessBase"]
[PlyCount "65"]
[EventDate "2020.08.07"]
[EventType "swiss"]
[EventCountry "SVK"]
[SourceTitle "playchess.com"]
[Source "ChessBase"]
[SourceQuality "1"]
[TimeControl "40/5400+30:1800+30"]

1. c4 {[%emt 0:00:00]} e5 {[%emt 0:00:05]} 2. Nc3 {[%emt 0:00:12]} c5 {[%emt 0:00:56]} 3. g3 {[%emt 0:00:42]} Nc6 {[%emt 0:00:28]} 4. Bg2 {[%emt 0:00:18]} Nf6 {[%emt 0:00:33]} 5. d3 {[%emt 0:00:28]} Be7 {[%emt 0:00:31]} 6. Nf3 {[%emt 0:00:15]} d6 {[%emt 0:00:07]} 7. O-O {[%emt 0:00:14]} O-O {[%emt 0:00:20]} 8. a3 {[%emt 0:02:21]} Bd7 {[%emt 0:00:43]} 9. Ne1 {[%emt 0:03:24]} Qc8 {[%emt 0:00:34]} 10. Nc2 {[%emt 0:00:44]} Bh3 11. e4 {[%emt 0:03:53]} Bxg2 {[%emt 0:01:38]} 12. Kxg2 {[%emt 0:00:57]} a6 {[%emt 0:02:18]} 13. Ne3 {[%emt 0:01:16]} Nd4 {[%emt 0:02:15]} 14. f4 {[%emt 0:06:31]} Nd7 {[%emt 0:05:32]} 15. Ncd5 {[%emt 0:04:17]} Bd8 {[%emt 0:00:51]} 16. f5 {[%emt 0:04:14]} f6 {[%emt 0:03:26]} 17. Bd2 {[%emt 0:13:50]} Rf7 {[%emt 0:00:56]} 18. Rf2 {[%emt 0:05:43]} Nb8 {[%emt 0:03:05]} 19. Qh5 {[%emt 0:05:37]} Qd7 {[%emt 0:03:26]} 20. Kh1 {[%emt 0:04:21]} Nb3 {[%emt 0:02:52]} 21. Rg1 {[%emt 0:01:16]} Nxd2 {[%emt 0:00:33]} 22. Rxd2 {[%emt 0:00:06]} Nc6 23. g4 {[%emt 0:01:44]} Nd4 {[%emt 0:05:13]} 24. Rg3 {[%emt 0:02:17]} h6 {[%emt 0:06:53]} 25. Rdg2 {[%emt 0:04:33]} b5 {[%emt 0:06:24]} 26. h4 {[%emt 0:03:36]} Ra7 {[%emt 0:03:23]} 27. g5 {[%emt 0:06:37]} fxg5 {[%emt 0:05:48]} 28. hxg5 {[%emt 0:00:08]} Nxf5 {[%emt 0:03:59]} 29. Nxf5 {[%emt 0:01:35]} Rxf5 {[%emt 0:00:22]} 30. exf5 {[%emt 0:00:11]} Qxf5 {[%emt 0:00:31]} 31. Qe8+ {[%emt 0:00:23]} Qf8 {[%emt 0:00:38]} 32. Qxf8+ {[%emt 0:00:11]} Kxf8 {[%emt 0:00:06]} 33. gxh6 {[%emt 0:00:17]} 1-0

[Event "Int SVK-ch Open 2020"]
[Site "Drienica"]
[Date "2020.08.09"]
[Round "3.8"]
[White "Durica, Daniel"]
[Black "Frink, Ferenc"]
[Result "0-1"]
[ECO "A50"]
[WhiteElo "1937"]
[BlackElo "2075"]
[Annotator "ChessBase"]
[PlyCount "42"]
[EventDate "2020.08.07"]
[EventType "swiss"]
[EventCountry "SVK"]
[SourceTitle "playchess.com"]
[Source "ChessBase"]
[SourceQuality "1"]
[TimeControl "40/5400+30:1800+30"]

1. d4 {[%emt 0:00:00]} Nf6 {[%emt 0:00:00]} 2. c4 {[%emt 0:00:21]} Nc6 {[%emt 0:00:10]} 3. Nc3 {[%emt 0:16:56]} e5 {[%emt 0:00:14]} 4. d5 {[%emt 0:01:21]} Ne7 {[%emt 0:00:03]} 5. Bg5 {[%emt 0:02:03]} Ng6 {[%emt 0:00:19]} 6. a3 {[%emt 0:11:26]} Bc5 {[%emt 0:03:22]} 7. Bxf6 {[%emt 0:04:00]} Qxf6 {[%emt 0:00:05]} 8. e3 {[%emt 0:05:29]} a5 {[%emt 0:02:43]} 9. Rb1 {[%emt 0:01:17]} Qe7 {[%emt 0:03:57]} 10. Nb5 {[%emt 0:10:36]} d6 {[%emt 0:02:06]} 11. b4 {[%emt 0:04:09]} Bb6 {[%emt 0:00:40]} 12. c5 {[%emt 0:11:27]} dxc5 {[%emt 0:02:38]} 13. d6 {[%emt 0:00:13]} cxd6 {[%emt 0:00:15]} 14. Nxd6+ {[%emt 0:00:05]} Kf8 {[%emt 0:00:12]} 15. Bc4 {[%emt 0:03:39]} Be6 {[%emt 0:05:14]} 16. Bxe6 {[%emt 0:02:27]} Rd8 {[%emt 0:01:58]} 17. bxc5 {[%emt 0:00:35]} Bxc5 {[%emt 0:00:55]} 18. Rxb7 {[%emt 0:00:19]} Qxe6 {[%emt 0:00:40]} 19. Nf3 {[%emt 0:06:43]} Qxd6 {[%emt 0:01:16]} 20. Qc2 {[%emt 0:01:02]} Qc6 {[%emt 0:01:58]} 21. Qb2 {[%emt 0:09:17]} Bb4+ {[%emt 0:01:08]} 0-1

[Event "Int SVK-ch Open 2020"]
[Site "Drienica"]
[Date "2020.08.09"]
[Round "3.8"]
[White "Striskova, Lucia"]
[Black "Belis, Rudolf"]
[Result "1-0"]
[ECO "B28"]
[WhiteElo "1706"]
[BlackElo "1924"]
[Annotator "ChessBase"]
[PlyCount "40"]
[EventDate "2020.08.07"]
[EventType "swiss"]
[EventCountry "SVK"]
[SourceTitle "playchess.com"]
[Source "ChessBase"]
[SourceQuality "1"]
[TimeControl "40/5400+30:1800+30"]

1. e4 {[%emt 0:00:00]} c5 {[%emt 0:00:00]} 2. Nf3 {[%emt 0:00:00]} a6 {[%emt 0:00:00]} 3. Nc3 {[%emt 0:00:07]} b5 {[%emt 0:00:00]} 4. d4 {[%emt 0:00:26]} cxd4 {[%emt 0:00:05]} 5. Nxd4 {[%emt 0:00:09]} Bb7 {[%emt 0:00:06]} 6. Bd3 {[%emt 0:00:56]} Nf6 {[%emt 0:00:09]} 7. O-O {[%emt 0:01:26]} b4 {[%emt 0:00:17]} 8. e5 {[%emt 0:02:33]} bxc3 {[%emt 0:00:26]} 9. exf6 {[%emt 0:00:09]} cxb2 {[%emt 0:00:22]} 10. fxe7 {[%emt 0:01:08]} bxa1=Q {[%emt 0:01:03]} 11. exd8=Q+ Kxd8 {[%emt 0:00:30]} 12. Bg5+ {[%emt 0:00:44]} f6 {[%emt 0:01:22]} 13. Qxa1 fxg5 {[%emt 0:00:05]} 14. Nf5 {[%emt 0:01:44]} Rg8 {[%emt 0:00:57]} 15. Bc4 {[%emt 0:00:27]} d5 {[%emt 0:00:04]} 16. Qd4 {[%emt 0:01:02]} Nd7 {[%emt 0:00:23]} 17. Bxd5 {[%emt 0:00:21]} Bc5 {[%emt 0:00:07]} 18. Qd2 {[%emt 0:00:52]} Bxd5 {[%emt 0:00:09]} 19. Qxd5 {[%emt 0:00:29]} Kc7 {[%emt 0:00:03]} 20. Nxg7 {[%emt 0:01:05]} Rh8 1-0

[Event "Int SVK-ch Open 2020"]
[Site "Drienica"]
[Date "2020.08.09"]
[Round "3.9"]
[White "Orsag, Milan"]
[Black "Bednar, Jan"]
[Result "1/2-1/2"]
[ECO "E34"]
[WhiteElo "2300"]
[BlackElo "2018"]
[Annotator "ChessBase"]
[PlyCount "59"]
[EventDate "2020.08.07"]
[EventType "swiss"]
[EventCountry "SVK"]
[SourceTitle "playchess.com"]
[Source "ChessBase"]
[SourceQuality "1"]
[TimeControl "40/5400+30:1800+30"]

1. d4 {[%emt 0:00:00]} Nf6 {[%emt 0:00:00]} 2. c4 {[%emt 0:00:50]} e6 {[%emt 0:00:00]} 3. Nc3 {[%emt 0:02:46]} Bb4 {[%emt 0:00:03]} 4. Qc2 {[%emt 0:00:19]} d5 {[%emt 0:04:31]} 5. e3 {[%emt 0:07:50]} O-O {[%emt 0:01:52]} 6. Bd3 {[%emt 0:04:05]} Nbd7 {[%emt 0:08:55]} 7. Nf3 {[%emt 0:02:07]} c5 {[%emt 0:01:51]} 8. O-O {[%emt 0:07:57]} cxd4 {[%emt 0:03:01]} 9. exd4 {[%emt 0:00:14]} dxc4 {[%emt 0:01:36]} 10. Bxc4 {[%emt 0:00:06]} Nb6 {[%emt 0:08:48]} 11. Bb3 {[%emt 0:01:20]} Bd7 {[%emt 0:01:10]} 12. Ne5 {[%emt 0:04:24]} Rc8 {[%emt 0:03:36]} 13. Qd3 {[%emt 0:04:46]} Nbd5 {[%emt 0:20:22]} 14. Bd2 {[%emt 0:03:52]} Be7 {[%emt 0:11:29]} 15. Rfe1 {[%emt 0:04:18]} Bc6 {[%emt 0:03:53]} 16. Rad1 {[%emt 0:07:37]} Qd6 {[%emt 0:03:17]} 17. Qh3 {[%emt 0:04:34]} Rfd8 {[%emt 0:05:55]} 18. Bg5 {[%emt 0:06:08]} Be8 {[%emt 0:05:44]} 19. Qf3 {[%emt 0:09:08]} h6 {[%emt 0:06:07]} 20. Bc1 {[%emt 0:04:01]} Bf8 {[%emt 0:00:43]} 21. h3 {[%emt 0:02:16]} a6 {[%emt 0:00:49]} 22. Qg3 {[%emt 0:04:54]} Kh8 {[%emt 0:01:05]} 23. Qh4 {[%emt 0:01:41]} Kg8 {[%emt 0:01:46]} 24. Rd3 {[%emt 0:02:44]} Nb4 {[%emt 0:03:29]} 25. Rg3 {[%emt 0:00:36]} Nh7 {[%emt 0:01:23]} 26. Bxh6 {[%emt 0:01:28]} Qxd4 {[%emt 0:01:02]} 27. Re4 {[%emt 0:00:42]} Qd6 {[%emt 0:00:32]} 28. Bxg7 {[%emt 0:01:00]} Bxg7 {[%emt 0:00:06]} 29. Qh6 {[%emt 0:00:16]} Qf8 {[%emt 0:00:39]} 30. Reg4 {[%emt 0:00:12]} 1/2-1/2

[Event "Int SVK-ch Open 2020"]
[Site "Drienica"]
[Date "2020.08.09"]
[Round "3.9"]
[White "Durica, Andrej"]
[Black "Strapec, Lukas"]
[Result "1/2-1/2"]
[ECO "B21"]
[WhiteElo "1911"]
[BlackElo "1525"]
[Annotator "ChessBase"]
[PlyCount "126"]
[EventDate "2020.08.07"]
[EventType "swiss"]
[EventCountry "SVK"]
[SourceTitle "playchess.com"]
[Source "ChessBase"]
[SourceQuality "1"]
[TimeControl "40/5400+30:1800+30"]

1. e4 {[%emt 0:00:00]} c5 {[%emt 0:00:00]} 2. d4 {[%emt 0:00:00]} cxd4 {[%emt 0:00:53]} 3. c3 {[%emt 0:00:00]} d3 {[%emt 0:00:47]} 4. Bxd3 {[%emt 0:00:06]} Nc6 {[%emt 0:01:39]} 5. Nf3 {[%emt 0:00:16]} g6 {[%emt 0:02:37]} 6. O-O {[%emt 0:00:47]} Bg7 {[%emt 0:01:17]} 7. c4 {[%emt 0:00:28]} d6 {[%emt 0:01:59]} 8. h3 {[%emt 0:00:14]} Nf6 {[%emt 0:08:04]} 9. Nc3 {[%emt 0:00:08]} O-O {[%emt 0:01:28]} 10. Be3 {[%emt 0:00:26]} Nd7 {[%emt 0:05:44]} 11. Rc1 {[%emt 0:00:35]} Nde5 {[%emt 0:08:16]} 12. Nxe5 {[%emt 0:00:18]} Bxe5 {[%emt 0:11:20]} 13. f4 {[%emt 0:04:51]} Bd4 {[%emt 0:02:24]} 14. Bxd4 {[%emt 0:00:26]} Nxd4 {[%emt 0:00:34]} 15. Bb1 {[%emt 0:00:34]} Nc6 {[%emt 0:08:41]} 16. Qd2 {[%emt 0:08:49]} b6 {[%emt 0:09:04]} 17. Rcd1 {[%emt 0:02:48]} Bb7 {[%emt 0:05:54]} 18. b3 {[%emt 0:01:59]} Qc8 {[%emt 0:01:34]} 19. Nd5 {[%emt 0:01:41]} Rd8 {[%emt 0:02:15]} 20. f5 {[%emt 0:01:05]} Rd7 {[%emt 0:07:11]} 21. fxg6 {[%emt 0:04:52]} hxg6 {[%emt 0:03:26]} 22. Rf4 {[%emt 0:02:51]} Ne5 {[%emt 0:04:25]} 23. Rh4 {[%emt 0:01:32]} Qf8 {[%emt 0:01:15]} 24. Rf1 {[%emt 0:01:42]} Qg7 {[%emt 0:02:41]} 25. Bc2 {[%emt 0:06:32]} f6 {[%emt 0:04:46]} 26. Bd1 {[%emt 0:00:29]} Kf7 {[%emt 0:02:22]} 27. Bg4 {[%emt 0:02:31]} Nxg4 {[%emt 0:01:08]} 28. Rxg4 {[%emt 0:00:21]} Rc8 {[%emt 0:01:23]} 29. Qe3 {[%emt 0:02:20]} Rcd8 {[%emt 0:00:42]} 30. h4 {[%emt 0:03:30]} Ke8 {[%emt 0:00:31]} 31. Nf4 {[%emt 0:01:36]} Qf7 {[%emt 0:00:31]} 32. Nxg6 {[%emt 0:01:26]} Qh7 {[%emt 0:00:22]} 33. Rf5 {[%emt 0:06:34]} Rc8 {[%emt 0:00:34]} 34. Nf4 {[%emt 0:00:23]} Rc5 {[%emt 0:00:29]} 35. Nd5 {[%emt 0:04:49]} Bxd5 {[%emt 0:00:29]} 36. cxd5 {[%emt 0:02:05]} Rdc7 {[%emt 0:00:31]} 37. Qg3 {[%emt 0:00:56]} Rc1+ {[%emt 0:00:31]} 38. Kh2 {[%emt 0:00:25]} R7c3 {[%emt 0:00:16]} 39. Rf3 {[%emt 0:03:00]} R3c2 {[%emt 0:00:33]} 40. Rg7 {[%emt 0:02:33]} Qxe4 {[%emt 0:00:33]} 41. Rg8+ {[%emt 0:33:47]} Kd7 {[%emt 0:30:23]} 42. Qh3+ {[%emt 0:00:14]} f5 {[%emt 0:00:00]} 43. Rxf5 {[%emt 0:00:00]} Kc7 {[%emt 0:00:00]} 44. Rc8+ {[%emt 0:00:00]} Kb7 {[%emt 0:00:00]} 45. Rxc2 {[%emt 0:00:00]} Rxc2 {[%emt 0:00:00]} 46. h5 {[%emt 0:00:00]} Rxg2+ {[%emt 0:00:00]} 47. Qxg2 {[%emt 0:00:00]} Qxf5 {[%emt 0:00:00]} 48. Qh3 {[%emt 0:00:00]} Qf2+ {[%emt 0:00:00]} 49. Kh1 {[%emt 0:00:00]} Qe1+ {[%emt 0:00:00]} 50. Kg2 {[%emt 0:00:00]} Qe2+ {[%emt 0:00:00]} 51. Kg3 {[%emt 0:00:00]} Qe3+ {[%emt 0:00:00]} 52. Kh4 {[%emt 0:00:00]} Qf4+ {[%emt 0:00:00]} 53. Qg4 {[%emt 0:00:00]} Qf2+ {[%emt 0:00:00]} 54. Kh3 {[%emt 0:00:00]} Qf1+ {[%emt 0:00:00]} 55. Qg2 {[%emt 0:00:00]} Qf5+ {[%emt 0:00:00]} 56. Kh4 {[%emt 0:00:00]} Qf4+ {[%emt 0:00:00]} 57. Qg4 {[%emt 0:00:00]} Qf2+ {[%emt 0:00:00]} 58. Kh3 {[%emt 0:00:00]} Qf1+ {[%emt 0:00:00]} 59. Kh2 {[%emt 0:00:00]} Qf2+ {[%emt 0:00:00]} 60. Qg2 {[%emt 0:00:00]} Qh4+ {[%emt 0:00:00]} 61. Qh3 {[%emt 0:00:00]} Qf2+ {[%emt 0:00:00]} 62. Kh1 {[%emt 0:00:00]} Qe1+ {[%emt 0:00:00]} 63. Kg2 {[%emt 0:00:00]} Qe2+ {[%emt 0:00:00]} 1/2-1/2